bitfinex/quotes_BTCUSD_20250523
["timestamp","ask_amount","ask_price","bid_price","bid_amount"]
[1748001893414,0.002,108610.0,108600.0,0.70493089]
[1748001893678,0.002,108610.0,108600.0,1.10481953]
[1748001893895,0.002,108610.0,108600.0,1.23986589]
[1748001894128,0.01120657,108610.0,108600.0,0.70493089]
[1748001894336,0.20455901,108610.0,108600.0,0.8930342]
[1748001894547,0.0204134,108610.0,108600.0,1.10481953]
[1748001894755,0.02962031,108610.0,108600.0,1.1048197]
[1748001894963,0.03882739,108610.0,108600.0,1.1140272]
[1748001895173,0.03882739,108610.0,108600.0,1.11402754]
[1748001895380,0.04803464,108610.0,108600.0,1.13831774]
[1748001895593,0.23217974,108610.0,108600.0,1.09561211]
[1748001895808,0.20455943,108610.0,108600.0,0.73988864]
[1748001896535,0.1861451,108610.0,108580.0,0.03115353]
[1748001896771,0.20259632,108590.0,108580.0,0.40104217]
[1748001896979,0.20259632,108590.0,108580.0,0.00115353]
[1748001897192,0.29214188,108590.0,108580.0,0.00115353]
[1748001898494,0.35544188,108590.0,108580.0,0.00115353]
[1748001898929,0.75533052,108590.0,108580.0,0.00115353]
[1748001899155,0.32384188,108590.0,108580.0,0.00115353]
[1748001899371,0.29214188,108590.0,108580.0,0.00115353]
[1748001900686,0.31304562,108590.0,108580.0,0.00115353]
[1748001900945,0.23463364,108570.0,108560.0,0.0009]
[1748001901198,0.3241792,108570.0,108560.0,0.0009]
[1748001901840,0.3554792,108570.0,108560.0,0.0009]
[1748001902057,0.40944814,108570.0,108560.0,0.0009]
[1748001902698,0.35944814,108570.0,108560.0,0.0009]
[1748001903124,0.3054792,108570.0,108560.0,0.0009]
[1748001903338,0.23991024,108580.0,108570.0,1.68374335]
[1748001903549,0.3294558,108580.0,108570.0,1.68374335]
[1748001903758,0.3194558,108580.0,108570.0,1.68374335]
[1748001903981,0.3294558,108580.0,108570.0,1.68374335]
[1748001904194,0.39125465,108580.0,108570.0,1.68374335]
[1748001904421,0.38125465,108580.0,108570.0,1.68374335]
[1748001904637,0.2737558,108580.0,108570.0,1.68374335]
[1748001904854,0.6381958,108580.0,108570.0,1.68374335]
[1748001905725,0.00920929,108580.0,108570.0,2.33965524]
[1748001905947,0.21182426,108580.0,108570.0,2.33044494]
[1748001906166,0.01857056,108590.0,108580.0,0.0638]
[1748001906377,0.1934056,108580.0,108570.0,2.11483199]
[1748001906598,0.21182493,108580.0,108570.0,2.28096677]
[1748001906818,0.00920903,108580.0,108570.0,2.78592081]
[1748001907035,0.21182409,108580.0,108570.0,2.23407755]
[1748001907247,0.20261497,108580.0,108570.0,2.14453199]
[1748001907554,0.01841899,108580.0,108570.0,2.3471658]
[1748001907761,0.002,108610.0,108600.0,0.61228533]
[1748001907977,0.002,108610.0,108600.0,1.01232689]
[1748001908193,0.002,108610.0,108600.0,0.70198381]
[1748001908407,0.002,108610.0,108600.0,1.12616265]
[1748001908625,0.002,108610.0,108600.0,1.10187245]
[1748001909064,0.02041391,108610.0,108600.0,0.49019848]
[1748001909284,0.20455901,108610.0,108600.0,1.08345728]
[1748001909497,0.20455901,108610.0,108600.0,0.46054156]
[1748001910144,0.0204134,108610.0,108600.0,0.46054156]
[1748001910361,0.01120649,108610.0,108600.0,0.76187245]
[1748001910585,0.01120649,108610.0,108600.0,0.75266495]
[1748001910586,0.0296204,108610.0,108600.0,0.75266495]
[1748001910795,0.002,108610.0,108600.0,1.10187245]
[1748001911240,0.39309336,108640.0,108630.0,0.26562206]
[1748001911460,0.01020403,108640.0,108630.0,0.68392088]
[1748001911674,0.02861268,108640.0,108630.0,0.77346644]
[1748001911894,0.01020403,108640.0,108630.0,0.78267157]
[1748001912108,0.22191164,108640.0,108630.0,0.9963054]
[1748001912325,0.001,108640.0,108630.0,1.11346661]
[1748001912565,0.01840315,108670.0,108660.0,0.06000802]
[1748001912785,0.21164866,108670.0,108660.0,0.63445461]
[1748001913015,0.00920149,108670.0,108660.0,0.64365703]
[1748001913257,0.57607003,108680.0,108670.0,0.27424934]
[1748001913481,0.56686905,108680.0,108670.0,0.47169081]
[1748001913703,0.20242905,108680.0,108670.0,0.46248864]
[1748001913930,0.0097137,108680.0,108670.0,0.65573407]
[1748001914154,0.0281155,108680.0,108670.0,0.67413764]
[1748001914359,0.22134314,108680.0,108670.0,0.65573407]
[1748001914581,0.03731657,108680.0,108670.0,0.67413764]
[1748001914802,0.03731657,108680.0,108670.0,1.13717497]
[1748001914803,0.00051272,108680.0,108670.0,1.13717497]
[1748001915046,0.00051272,108680.0,108670.0,1.11288477]
[1748001915231,0.00820339,108720.0,108710.0,0.24407104]
[1748001915442,0.00835713,108720.0,108710.0,0.67505968]
[1748001915667,0.00835713,108720.0,108710.0,0.76460524]
[1748001915872,0.00835713,108720.0,108710.0,0.78889544]
[1748001916083,0.94777193,108790.0,108710.0,0.78889544]
[1748001916084,0.21238137,108790.0,108760.0,0.19308551]
[1748001916296,0.21147419,108760.0,108750.0,0.0621]
[1748001916551,0.21147419,108760.0,108750.0,0.26439849]
[1748001916766,0.01838851,108760.0,108750.0,0.65509199]
[1748001917002,0.21147419,108760.0,108750.0,0.66428722]
[1748001917297,0.20228006,108760.0,108750.0,0.46198864]
[1748001917551,0.21147419,108760.0,108750.0,0.0712954]
[1748001917756,0.00919396,108760.0,108750.0,0.67348245]
[1748001917975,0.05973732,108770.0,108760.0,0.27537377]
[1748001918190,0.04135126,108770.0,108760.0,0.67526241]
[1748001918420,0.01838319,108790.0,108780.0,0.20222853]
[1748001918639,0.01838319,108790.0,108780.0,0.76355508]
[1748001918640,0.02808602,108790.0,108780.0,0.76355508]
[1748001918868,0.21192644,108790.0,108780.0,0.74517029]
[1748001919088,0.00051158,108790.0,108780.0,1.10566909]
[1748001919303,0.22372334,108830.0,108800.0,0.35838175]
[1748001919524,0.03076138,108830.0,108820.0,1.0566428]
[1748001919800,0.03091482,108830.0,108820.0,0.98334581]
[1748001920034,0.23306436,108830.0,108820.0,0.46448864]
[1748001920273,0.23306436,108830.0,108790.0,0.22328924]
[1748001920274,0.18380663,108810.0,108790.0,0.22328924]
[1748001920499,0.19297897,108820.0,108810.0,0.18380663]
[1748001920730,0.19297897,108820.0,108790.0,0.08954556]
[1748001920731,0.19301452,108800.0,108790.0,0.08954556]
[1748001920954,0.1838546,108790.0,108770.0,0.65615615]
[1748001921160,0.21143497,108780.0,108770.0,0.65615641]
[1748001921373,0.2206269,108780.0,108770.0,0.46308864]
[1748001921590,0.20224245,108780.0,108770.0,0.46308864]
[1748001921815,0.1838546,108790.0,108770.0,0.66534969]
[1748001922039,0.00919244,108780.0,108770.0,0.26546105]
[1748001922262,0.00919244,108780.0,108760.0,0.19307915]
[1748001922263,0.00919354,108770.0,108760.0,0.39988864]
[1748001922470,0.52680255,108780.0,108760.0,0.00051158]
[1748001922717,0.12204556,108770.0,108760.0,0.00051158]
[1748001922931,0.15464556,108770.0,108760.0,0.00051158]
[1748001923349,0.16842147,108770.0,108760.0,0.00051158]
[1748001923563,0.13582147,108770.0,108760.0,0.00051158]
[1748001923774,0.48600556,108770.0,108760.0,0.00051158]
[1748001924015,0.45350556,108770.0,108760.0,0.00051158]
[1748001924736,0.49885612,108770.0,108760.0,0.00051158]
[1748001924984,0.49885612,108770.0,108690.0,0.033]
[1748001924985,0.96094476,108770.0,108690.0,0.033]
[1748001925204,0.44558864,108760.0,108710.0,0.00015354]
[1748001925443,0.08954556,108740.0,108710.0,0.00015354]
[1748001925673,0.08952151,108760.0,108710.0,0.00015354]
[1748001925904,0.08954556,108740.0,108710.0,0.00015354]
[1748001926134,0.08954556,108730.0,108710.0,0.00015354]
[1748001926631,0.24397763,108770.0,108720.0,0.0604]
[1748001926632,0.21172087,108770.0,108720.0,0.0604]
[1748001926877,0.08954556,108760.0,108720.0,0.06645535]
[1748001927094,0.08954556,108760.0,108730.0,0.43228864]
[1748001927322,0.08954556,108760.0,108730.0,0.0324]
[1748001927573,0.08954556,108760.0,108740.0,0.39988864]
[1748001927798,0.08954556,108760.0,108730.0,0.46278864]
[1748001928013,0.08954556,108760.0,108730.0,0.0629]
[1748001928231,0.08954556,108760.0,108730.0,0.46278864]
[1748001928676,0.001,108770.0,108740.0,0.03]
[1748001928937,0.09054556,108770.0,108740.0,0.061]
[1748001929186,0.09054556,108770.0,108750.0,0.031]
[1748001929432,0.001,108770.0,108760.0,0.8904342]
[1748001929936,0.001,108770.0,108760.0,1.20457256]
[1748001930180,0.001,108770.0,108760.0,1.2904342]
[1748001930366,0.44534541,108840.0,108800.0,0.39988864]
[1748001930686,0.08954556,108830.0,108790.0,0.39988864]
[1748001930929,0.07329699,108820.0,108790.0,0.46468864]
[1748001931170,0.16284255,108820.0,108790.0,0.46468864]
[1748001931411,0.16284255,108820.0,108790.0,0.0648]
[1748001931629,0.08954556,108820.0,108800.0,0.0631]
[1748001931870,0.16284255,108810.0,108760.0,0.15364556]
[1748001932082,0.08954556,108810.0,108770.0,0.0331]
[1748001932302,0.02232078,108840.0,108780.0,0.46428864]
[1748001932514,0.02232078,108840.0,108780.0,0.0643]
[1748001932515,0.40848896,108840.0,108780.0,0.0643]
[1748001932734,0.43207428,108840.0,108780.0,0.0643]
[1748001932946,0.08954556,108820.0,108760.0,0.43358864]
[1748001933213,0.13544556,108820.0,108760.0,0.43358864]
[1748001933438,0.14353398,108820.0,108780.0,0.0327]
[1748001933647,0.14353398,108820.0,108770.0,0.0633]
[1748001933902,0.14353398,108820.0,108780.0,0.42988864]
[1748001934151,0.15788738,108820.0,108780.0,0.03]
[1748001934385,0.14353398,108820.0,108780.0,0.0615]
[1748001934601,0.14353398,108820.0,108790.0,0.43248864]
[1748001934832,0.14353398,108820.0,108780.0,0.0641]
[1748001935289,0.14353398,108820.0,108780.0,0.46398864]
[1748001935765,0.14353398,108820.0,108780.0,0.0641]
[1748001936040,0.14353398,108820.0,108780.0,0.11945342]
[1748001936267,0.14353398,108820.0,108770.0,0.08954556]
[1748001936485,0.14353398,108820.0,108780.0,0.39988864]
[1748001936716,0.14353398,108820.0,108770.0,0.4894342]
[1748001936938,0.09763398,108820.0,108780.0,0.47318563]
[1748001937150,0.09763398,108820.0,108780.0,0.39988864]
[1748001937364,0.09763398,108820.0,108780.0,0.04894342]
[1748001937579,0.09763398,108820.0,108770.0,0.08954556]
[1748001937790,0.09763398,108820.0,108780.0,0.39988864]
[1748001938239,0.09763398,108820.0,108770.0,0.08954556]
[1748001938452,0.09763398,108820.0,108780.0,0.39988864]
[1748001939050,0.09763398,108820.0,108770.0,0.08954556]
[1748001939350,0.09763398,108820.0,108780.0,0.39988864]
[1748001939817,0.15943398,108820.0,108760.0,0.001]
[1748001940015,0.42954556,108800.0,108760.0,0.001]
[1748001940307,0.042,108780.0,108760.0,0.001]
[1748001940538,0.16244556,108780.0,108760.0,0.001]
[1748001940763,0.26588188,108780.0,108760.0,0.001]
[1748001940993,0.09763398,108780.0,108760.0,0.001]
[1748001942982,0.36376,108820.0,108810.0,1.07352871]
[1748001943160,0.8990942,108820.0,108810.0,0.86970882]
[1748001943412,0.9281891,108820.0,108810.0,0.78617205]
[1748001943628,0.9281891,108820.0,108810.0,0.77265934]
[1748001943872,1.01771061,108820.0,108810.0,0.67852974]
[1748001944087,0.61782197,108820.0,108810.0,0.67118053]
[1748001944297,0.99012761,108820.0,108810.0,0.67118053]
[1748001944509,0.99012761,108820.0,108810.0,0.66383132]
[1748001944691,0.59023897,108820.0,108810.0,0.66383132]
[1748001944938,0.99012761,108820.0,108810.0,0.66383132]
[1748001945619,0.99012761,108820.0,108810.0,0.42562978]
[1748001946288,0.59023897,108820.0,108810.0,0.42562978]
[1748001946499,0.45481746,108820.0,108810.0,0.42562978]
[1748001946968,0.8547061,108820.0,108810.0,0.42562978]
[1748001947177,0.45481746,108820.0,108810.0,0.42562978]
[1748001948468,0.09105746,108820.0,108810.0,0.42562978]
[1748001948677,0.14015207,108820.0,108810.0,0.42562978]
[1748001948887,0.54004071,108820.0,108810.0,0.42562978]
[1748001949105,0.8309461,108820.0,108810.0,0.42562978]
[1748001949763,1.1947461,108820.0,108810.0,0.42562978]
[1748001950416,1.1947461,108820.0,108810.0,0.41827838]
[1748001950630,0.79485746,108820.0,108810.0,0.41827838]
[1748001950855,1.63206155,108820.0,108810.0,0.32412353]
[1748001951077,1.30676626,108820.0,108810.0,0.32412353]
[1748001951298,1.28206155,108820.0,108810.0,0.32412353]
[1748001951529,0.54217291,108820.0,108810.0,0.32412353]
[1748001951746,0.45485746,108820.0,108810.0,0.32412353]
[1748001951954,0.8547461,108820.0,108810.0,0.32412353]
[1748001952194,1.1947461,108820.0,108810.0,0.32412353]
[1748001952822,0.79485746,108820.0,108810.0,0.32412353]
[1748001953044,0.54437897,108820.0,108810.0,0.32412353]
[1748001953295,0.88437897,108820.0,108810.0,0.32412353]
[1748001953586,0.83772453,108820.0,108810.0,0.32412353]
[1748001954740,1.23761317,108820.0,108810.0,0.32412353]
[1748001954945,0.83772453,108820.0,108810.0,0.32412353]
[1748001955149,0.85420476,108820.0,108810.0,0.32412353]
[1748001955395,0.46982579,108820.0,108810.0,0.38892353]
[1748001955806,0.45334556,108820.0,108810.0,0.32412353]
[1748001956016,0.46159093,108820.0,108810.0,0.32412353]
[1748001956964,0.46159093,108820.0,108810.0,0.35502353]
[1748001957188,0.50775002,108820.0,108810.0,0.35502353]
[1748001957441,0.50775002,108820.0,108810.0,0.38782353]
[1748001958122,0.50775002,108820.0,108810.0,2.38782353]
[1748001958375,0.14395002,108820.0,108810.0,2.38782353]
[1748001958647,0.46155093,108820.0,108810.0,2.38782353]
[1748001959596,0.8779198,108820.0,108810.0,2.32412353]
[1748001959829,1.2179198,108820.0,108810.0,2.31815093]
[1748001960068,1.2179198,108820.0,108810.0,2.31080092]
[1748001960313,1.30744131,108820.0,108810.0,2.30345091]
[1748001960784,0.34,108810.0,108800.0,1.18520783]
[1748001961009,4.19119755,108810.0,108800.0,0.52050743]
[1748001961251,1.59580805,108810.0,108800.0,0.46635965]
[1748001961474,6.31825477,108810.0,108800.0,0.45900964]
[1748001961696,0.52387423,108770.0,108760.0,0.001]
[1748001961907,0.52392495,108740.0,108730.0,0.0321]
[1748001962116,0.18394187,108730.0,108720.0,0.10469699]
[1748001962326,0.18397571,108710.0,108700.0,0.11278085]
[1748001962542,0.27352127,108710.0,108700.0,0.11378085]
[1748001963000,0.27352127,108710.0,108700.0,0.07239576]
[1748001963217,0.27352127,108710.0,108700.0,0.00959576]
[1748001963218,1.04346744,108710.0,108700.0,0.00959576]
[1748001963438,0.6435788,108710.0,108700.0,0.00959576]
[1748001963679,0.6435788,108710.0,108700.0,0.0016119]
[1748001964318,0.6435788,108710.0,108680.0,0.13572813]
[1748001964319,0.20240991,108690.0,108680.0,0.13572813]
[1748001964533,0.19322764,108680.0,108670.0,1.98284027]
[1748001964750,0.2827732,108680.0,108670.0,1.97299381]
[1748001965012,0.19322764,108680.0,108670.0,2.38288245]
[1748001965221,0.19322764,108680.0,108670.0,2.48242801]
[1748001965222,0.20242871,108680.0,108670.0,2.48242801]
[1748001965656,0.20242871,108680.0,108670.0,2.82242801]
[1748001965879,0.17122871,108680.0,108670.0,2.82342801]
[1748001966096,0.17122879,108680.0,108670.0,2.82342801]
[1748001966539,0.17122879,108680.0,108670.0,1.98399381]
[1748001966774,0.17122879,108680.0,108670.0,1.97399381]
[1748001966775,0.26047435,108680.0,108670.0,1.97399381]
[1748001968103,1.00036299,108680.0,108670.0,1.97399381]
[1748001968334,0.18410539,108650.0,108620.0,0.01]
[1748001968553,0.00920708,108610.0,108590.0,0.0403]
[1748001968848,0.32889774,108610.0,108600.0,0.0001]
[1748001969078,1.06878638,108610.0,108600.0,0.00061272]
[1748001969298,0.66889774,108610.0,108600.0,0.00061272]
[1748001969520,1.06878638,108610.0,108600.0,0.00061272]
[1748001969735,1.08520846,108610.0,108600.0,0.00061272]
[1748001969948,0.20259632,108590.0,108580.0,0.002]
[1748001970157,0.29214188,108590.0,108580.0,0.00215374]
[1748001970830,0.29214188,108590.0,108580.0,0.06365374]
[1748001971471,0.29214188,108590.0,108580.0,0.00215374]
[1748001971691,0.20263364,108570.0,108560.0,0.0009]
[1748001971916,0.2921792,108570.0,108560.0,0.03205292]
[1748001972162,0.2921792,108570.0,108560.0,0.07475292]
[1748001972369,0.18419598,108580.0,108570.0,0.0332]
[1748001972611,0.27374154,108580.0,108570.0,0.0332]
[1748001974357,0.00920962,108580.0,108570.0,0.80780471]
[1748001974588,0.18417902,108600.0,108590.0,0.0739]
[1748001974810,0.18417902,108600.0,108590.0,0.48378864]
[1748001975453,0.18417902,108610.0,108600.0,0.0839]
[1748001976775,0.27372458,108610.0,108600.0,0.0639]
[1748001976988,0.27372458,108610.0,108600.0,0.0739]
[1748001977193,0.18417902,108610.0,108600.0,0.0839]
[1748001977419,0.18419331,108620.0,108610.0,0.0812]
[1748001977647,0.18419331,108620.0,108610.0,0.66523374]
[1748001977952,0.1841451,108630.0,108620.0,0.02]
[1748001978173,0.19334738,108640.0,108630.0,0.0812]
[1748001978393,0.19350064,108640.0,108630.0,0.67440523]
[1748001978609,0.19350064,108640.0,108630.0,0.6744054]
[1748001978610,0.19345213,108640.0,108630.0,0.6744054]
[1748001978820,0.20265633,108640.0,108630.0,0.5706342]
[1748001979034,0.20265633,108640.0,108630.0,0.0712]
[1748001979256,0.20265633,108640.0,108630.0,0.0612]
[1748001979525,0.20265633,108640.0,108630.0,0.0712]
[1748001979752,0.29220189,108640.0,108630.0,0.0612]
[1748001980960,0.20254036,108620.0,108610.0,0.051]
[1748001981185,0.20254036,108620.0,108610.0,0.45088864]
[1748001981410,0.19333438,108620.0,108610.0,0.49242064]
[1748001981640,0.20254036,108620.0,108610.0,0.0624]
[1748001981884,0.29208592,108620.0,108610.0,0.0624]
[1748001982114,0.20254036,108620.0,108610.0,0.0624]
[1748001982333,0.29208592,108620.0,108610.0,0.0624]
[1748001982546,0.19335218,108610.0,108600.0,0.0734]
[1748001982760,0.28289774,108610.0,108600.0,0.0734]
[1748001983408,0.28289774,108610.0,108600.0,0.0634]
[1748001983627,0.00920962,108580.0,108570.0,0.011]
[1748001983840,0.00920962,108580.0,108560.0,2.0009]
[1748001983841,0.19342342,108570.0,108560.0,2.0009]
[1748001984146,0.28296898,108570.0,108560.0,2.0009]
[1748001984233,0.28386898,108570.0,108560.0,2.0009]
[1748001984445,0.28296898,108570.0,108560.0,2.0009]
[1748001984662,0.28386898,108570.0,108560.0,2.0009]
[1748001985096,0.28386898,108570.0,108560.0,2.00105292]
[1748001987107,0.28386898,108570.0,108550.0,0.0001]
[1748001987108,0.94254111,108560.0,108550.0,0.0001]
[1748001987324,1.16038366,108560.0,108550.0,0.0001]
[1748001987547,0.93336552,108540.0,108530.0,0.0164257]
[1748001987774,1.76060807,108540.0,108530.0,0.0164257]
[1748001987987,1.36071943,108540.0,108530.0,0.0018327]
[1748001988211,1.36071943,108540.0,108480.0,0.0101]
[1748001988212,0.20274568,108510.0,108480.0,0.0101]
[1748001988431,0.20274568,108510.0,108480.0,0.0001]
[1748001988432,1.03217988,108510.0,108480.0,0.0001]
[1748001988649,0.20278305,108490.0,108480.0,0.0001]
[1748001988862,0.29232861,108490.0,108480.0,0.0001]
[1748001989070,0.3061583,108490.0,108480.0,0.0001]
[1748001989735,0.29248156,108490.0,108480.0,0.0001]
[1748001990435,0.59248156,108490.0,108480.0,0.0001]
[1748001990647,0.29248156,108490.0,108480.0,0.0001]
[1748001990864,0.29248156,108490.0,108480.0,0.075]
[1748001991101,0.202936,108490.0,108480.0,0.092504]
[1748001991539,0.202936,108490.0,108480.0,0.18204956]
[1748001992049,0.19371899,108490.0,108480.0,0.17454556]
[1748001992263,0.20277937,108500.0,108490.0,0.02]
[1748001992483,0.1843148,108510.0,108500.0,0.02]
[1748001992708,0.18430908,108530.0,108520.0,0.02]
[1748001992935,0.19352303,108530.0,108520.0,0.23194146]
[1748001993151,0.20273673,108530.0,108520.0,0.38651563]
[1748001993359,0.20273673,108530.0,108520.0,0.35394338]
[1748001993581,0.19352303,108530.0,108520.0,0.14964556]
[1748001993804,0.19352303,108530.0,108520.0,0.0601]
[1748001994023,0.18426386,108540.0,108520.0,0.36158702]
[1748001994238,0.18426386,108540.0,108530.0,0.15304556]
[1748001994460,0.18429542,108550.0,108540.0,0.0635]
[1748001994912,0.20274568,108510.0,108500.0,0.3646]
[1748001995138,0.20278305,108490.0,108480.0,0.18546578]
[1748001995358,0.2119998,108490.0,108480.0,0.29344748]
[1748001995590,0.1843148,108510.0,108500.0,0.0624]
[1748001996674,0.1843148,108510.0,108500.0,0.031]
[1748001996675,0.27386036,108510.0,108500.0,0.031]
[1748001997123,0.20278305,108490.0,108480.0,0.03340988]
[1748001997356,0.20278305,108490.0,108480.0,0.06490988]
[1748001998026,0.20278305,108490.0,108480.0,0.03310988]
[1748001998269,0.29232861,108490.0,108480.0,0.00160988]
[1748001998494,0.69221725,108490.0,108480.0,0.00160988]
[1748001999358,0.71653713,108490.0,108480.0,0.00160988]
[1748001999594,0.78053713,108490.0,108480.0,0.00160988]
[1748001999818,0.21280192,108480.0,108470.0,4e-05]
[1748002000067,0.46336435,108480.0,108470.0,0.00019295]
[1748002000325,0.19361958,108460.0,108450.0,0.01137987]
[1748002000546,0.42959868,108460.0,108450.0,0.0040104]
[1748002000802,0.19363744,108450.0,108440.0,0.00182537]
[1748002001023,0.68307164,108450.0,108440.0,0.00182537]
[1748002001240,0.288183,108450.0,108440.0,0.00182537]
[1748002001694,0.283183,108450.0,108440.0,0.00182537]
[1748002002547,0.77338506,108450.0,108440.0,0.00182537]
[1748002002758,1.03185735,108440.0,108420.0,0.0164257]
[1748002002974,1.43246291,108440.0,108420.0,0.0164257]
[1748002003188,1.43246291,108440.0,108420.0,0.00915724]
[1748002003189,0.95856179,108430.0,108420.0,0.00915724]
[1748002003452,0.95856179,108430.0,108420.0,0.00178777]
[1748002003453,0.70499096,108430.0,108420.0,0.00178777]
[1748002003684,0.74860735,108430.0,108420.0,0.00178777]
[1748002003895,0.28821871,108430.0,108420.0,0.00178777]
[1748002004117,0.19369103,108420.0,108410.0,0.02001357]
[1748002004330,0.00922526,108390.0,108380.0,0.00230642]
[1748002004545,0.009225,108400.0,108380.0,0.30176054]
[1748002004778,0.20295576,108400.0,108390.0,0.0622]
[1748002004988,0.20295108,108400.0,108390.0,0.2559448]
[1748002005200,0.20295108,108400.0,108390.0,0.0622]
[1748002005201,0.20295151,108400.0,108390.0,0.0622]
[1748002005644,0.19376259,108380.0,108370.0,0.00922764]
[1748002005851,0.19376259,108380.0,108370.0,0.0634]
[1748002006312,0.20297048,108390.0,108380.0,0.0634]
[1748002006527,0.20297048,108390.0,108380.0,0.24793589]
[1748002006753,0.20297048,108390.0,108380.0,0.46328864]
[1748002006962,0.20297048,108390.0,108380.0,0.65705132]
[1748002007171,0.22142091,108390.0,108380.0,0.47251543]
[1748002007401,0.20297031,108390.0,108380.0,0.46328864]
[1748002008051,0.20297031,108390.0,108380.0,0.0634]
[1748002008261,0.20297031,108390.0,108380.0,0.49085216]
[1748002008476,0.20297031,108390.0,108380.0,0.46328864]
[1748002010408,0.20297031,108390.0,108380.0,0.0634]
[1748002010619,0.20297031,108390.0,108380.0,0.46328864]
[1748002011072,0.20297031,108390.0,108380.0,0.0634]
[1748002011522,0.20300761,108370.0,108360.0,0.033]
[1748002011737,0.20300761,108370.0,108360.0,0.43288864]
[1748002012029,0.20300761,108370.0,108360.0,0.033]
[1748002012280,0.20300761,108370.0,108360.0,0.43288864]
[1748002012507,0.20300761,108370.0,108360.0,0.46508864]
[1748002013394,0.20300761,108370.0,108360.0,0.65888708]
[1748002013604,0.18455083,108380.0,108370.0,0.25618039]
[1748002013852,0.18455083,108380.0,108370.0,0.0624]
[1748002014064,0.18455083,108380.0,108370.0,0.75484207]
[1748002014282,0.20300398,108380.0,108370.0,0.36418073]
[1748002014503,0.20300398,108380.0,108370.0,0.74561476]
[1748002014723,0.19374622,108390.0,108380.0,0.0654]
[1748002015191,0.19374622,108390.0,108380.0,0.46528864]
[1748002015398,0.28329178,108390.0,108380.0,0.0316]
[1748002015602,0.19374622,108390.0,108380.0,0.0317]
[1748002017619,0.19374622,108390.0,108380.0,0.0001]
[1748002017834,0.28329178,108390.0,108380.0,0.0001]
[1748002018479,0.19374622,108390.0,108380.0,0.39998864]
[1748002018701,0.19374622,108390.0,108380.0,0.42998864]
[1748002018918,0.19374622,108390.0,108380.0,0.46038864]
[1748002020214,0.19374622,108390.0,108380.0,0.8419144]
[1748002020215,0.00922543,108390.0,108380.0,0.8419144]
[1748002020434,0.20310523,108400.0,108390.0,0.26657031]
[1748002020644,0.20310523,108400.0,108390.0,0.746779]
[1748002020873,0.19388031,108400.0,108390.0,0.15314556]
[1748002021115,0.19388031,108400.0,108390.0,0.0636]
[1748002021339,0.19374463,108390.0,108380.0,0.0001]
[1748002021598,0.28329019,108390.0,108380.0,0.0001]
[1748002023609,0.19374463,108390.0,108380.0,0.0001]
[1748002023823,0.28329019,108390.0,108380.0,0.0001]
[1748002024914,0.20302634,108360.0,108350.0,0.46406538]
[1748002025199,0.20302634,108360.0,108350.0,0.64313245]
[1748002025439,0.20302676,108360.0,108350.0,0.25178897]
[1748002025652,0.20302676,108360.0,108350.0,0.65167761]
[1748002026118,0.27406442,108390.0,108370.0,0.01845486]
[1748002026119,0.18451886,108390.0,108370.0,0.01845486]
[1748002026334,0.22144151,108380.0,108370.0,0.02953004]
[1748002026548,0.20298904,108380.0,108370.0,0.10984804]
[1748002026784,0.20298904,108380.0,108370.0,0.57383668]
[1748002026994,0.20298853,108380.0,108370.0,0.57383668]
[1748002027209,0.20298904,108380.0,108370.0,0.57383668]
[1748002027414,0.20298904,108380.0,108370.0,0.58238184]
[1748002027625,0.19376208,108380.0,108370.0,0.77616223]
[1748002027863,0.00937887,108390.0,108380.0,0.26438904]
[1748002028102,0.18450184,108400.0,108380.0,0.26438904]
[1748002028103,0.22140216,108400.0,108390.0,0.25514471]
[1748002028307,0.21217775,108400.0,108390.0,0.9159542]
[1748002028525,0.20295326,108400.0,108390.0,0.91617443]
[1748002028737,0.20295326,108400.0,108390.0,0.51628579]
[1748002028955,0.27625025,108400.0,108390.0,0.06162023]
[1748002029167,0.20295326,108400.0,108390.0,0.06162023]
[1748002029847,0.20295326,108400.0,108390.0,0.07022198]
[1748002030055,0.20295326,108400.0,108390.0,0.56586935]
[1748002030463,0.18448482,108410.0,108400.0,0.24909192]
[1748002030464,0.01844805,108410.0,108400.0,0.24909192]
[1748002030707,0.20293321,108410.0,108400.0,0.15414556]
[1748002030887,0.20293321,108410.0,108400.0,0.0646]
[1748002031133,0.20293321,108410.0,108400.0,0.1482002]
[1748002031337,0.20293321,108410.0,108400.0,0.0646]
[1748002031756,0.19372676,108400.0,108390.0,0.00022023]
[1748002031981,0.19374463,108390.0,108380.0,0.00051146]
[1748002032633,0.19374463,108390.0,108380.0,0.00911992]
[1748002034126,0.20297031,108390.0,108380.0,0.07311992]
[1748002034337,0.18448482,108410.0,108400.0,0.24850184]
[1748002034557,0.01844635,108420.0,108410.0,0.26693295]
[1748002034766,0.21213696,108420.0,108410.0,0.65759761]
[1748002034975,0.02766915,108420.0,108410.0,0.75634302]
[1748002035177,0.02766915,108420.0,108410.0,0.84588858]
[1748002035394,0.20291408,108420.0,108410.0,0.5534342]
[1748002035603,0.20291408,108420.0,108410.0,0.73791902]
[1748002035876,0.00922279,108420.0,108410.0,0.80242705]
[1748002036105,0.01766396,108430.0,108420.0,0.21213721]
[1748002036316,0.20291382,108420.0,108410.0,0.45462556]
[1748002036568,0.19369094,108420.0,108410.0,1.01428867]
[1748002036813,0.01766379,108430.0,108420.0,0.20291433]
[1748002037068,0.20291424,108420.0,108410.0,0.91934941]
[1748002037277,0.20791424,108420.0,108410.0,0.36508]
[1748002037715,0.18460452,108430.0,108420.0,0.01844635]
[1748002037929,0.18460452,108430.0,108410.0,0.9771249]
[1748002037930,0.20291408,108420.0,108410.0,0.8545142]
[1748002038143,0.01844601,108420.0,108410.0,1.07589461]
[1748002038365,0.02766931,108420.0,108410.0,1.05744724]
[1748002038574,0.01844533,108420.0,108410.0,1.07589478]
[1748002038764,0.01844533,108420.0,108410.0,1.16541629]
[1748002038902,0.02766829,108420.0,108410.0,1.22771629]
[1748002039115,0.02782107,108430.0,108420.0,0.20291433]
[1748002039315,0.00937558,108430.0,108420.0,0.75464853]
[1748002039522,0.00015373,108430.0,108420.0,0.57860334]
[1748002039729,0.02781997,108430.0,108420.0,0.85259266]
[1748002039931,0.00015373,108430.0,108420.0,0.85259266]
[1748002040141,0.1844571,108460.0,108420.0,0.85259266]
[1748002040142,0.20283914,108460.0,108450.0,0.20285238]
[1748002040348,0.20283931,108460.0,108450.0,0.0316]
[1748002040552,0.20289526,108430.0,108420.0,0.4320001]
[1748002040753,0.20289526,108430.0,108420.0,0.09005702]
[1748002040953,0.20989526,108430.0,108420.0,0.48690267]
[1748002041157,0.20989526,108430.0,108420.0,0.58586791]
[1748002041360,0.21911677,108430.0,108420.0,0.64653748]
[1748002041604,0.20289099,108440.0,108430.0,0.19367315]
[1748002041778,0.02766573,108430.0,108420.0,0.27834807]
[1748002041982,0.0184409,108450.0,108440.0,0.20287638]
[1748002042233,0.21207851,108450.0,108440.0,0.18443378]
[1748002042422,0.21211703,108430.0,108420.0,0.20424829]